fUSD/lending_fUSD_20250208
["ID","MTS","AMOUNT","RATE_DAILY","PERIOD"]
[352311818,1739038234830,-500.0,0.00010879,2]
[352311820,1739038234840,-500.0,0.00010879,2]
[352311822,1739038234851,-500.0,0.00010879,2]
[352311824,1739038234861,-288.36652783,0.00010879,2]
[352311826,1739038234872,-500.0,0.00010879,2]
[352311828,1739038234883,-500.0,0.00010879,2]
[352311830,1739038234893,-500.0,0.00010879,2]
[352311832,1739038234903,-500.0,0.00010879,2]
[352311834,1739038234913,-500.0,0.00010879,2]
[352311836,1739038234923,-500.0,0.00010879,2]
[352311839,1739038234934,-500.0,0.00010879,2]
[352311841,1739038234944,-500.0,0.00010879,2]
[352311843,1739038234955,-500.0,0.00010879,2]
[352311845,1739038234965,-500.0,0.00010879,2]
[352311847,1739038234975,-500.0,0.00010879,2]
[352311849,1739038234985,-607.11,0.00010879,2]
[352311851,1739038234995,-500.0,0.00010879,2]
[352311853,1739038235006,-500.0,0.00010879,2]
[352311855,1739038235015,-691.19,0.00010879,2]
[352311857,1739038235026,-500.0,0.00010879,2]
[352311859,1739038235035,-500.0,0.00010879,2]
[352311861,1739038235046,-500.0,0.00010879,2]
[352311863,1739038235056,-500.0,0.00010879,2]
[352311865,1739038235067,-500.0,0.00010879,2]
[352311867,1739038235077,-500.0,0.00010879,2]
[352311869,1739038235087,-500.0,0.00010879,2]
[352311872,1739038235097,-500.0,0.00010879,2]
[352311874,1739038235107,-500.0,0.00010879,2]
[352311876,1739038235118,-671.24,0.00010879,2]
[352311878,1739038235128,-500.0,0.00010879,2]
[352311880,1739038235138,-500.0,0.00010879,2]
[352311882,1739038235149,-312.03979341,0.00010879,2]
[352311884,1739038235160,-500.0,0.00010879,2]
[352311886,1739038235170,-500.0,0.00010879,2]
[352311888,1739038235180,-500.0,0.00010879,2]
[352311890,1739038235190,-500.0,0.00010879,2]
[352311892,1739038235200,-500.0,0.00010879,2]
[352311894,1739038235210,-215.68991301,0.00010879,2]
[352311897,1739038235220,-500.0,0.00010879,2]
[352311899,1739038235231,-500.0,0.00010879,2]
[352311901,1739038235241,-500.0,0.00010879,2]
[352311903,1739038235251,-500.0,0.00010879,2]
[352311905,1739038235262,-500.0,0.00010879,2]
[352311907,1739038235272,-500.0,0.00010879,2]
[352311909,1739038235282,-500.0,0.00010879,2]
[352311911,1739038235292,-500.0,0.00010879,2]
[352311913,1739038235303,-500.0,0.00010879,2]
[352311915,1739038235313,-500.0,0.00010879,2]
[352311917,1739038235323,-500.0,0.00010879,2]
[352311919,1739038235333,-500.0,0.00010879,2]
[352311921,1739038235343,-819.91,0.00010879,2]
[352311924,1739038235354,-500.0,0.00010879,2]
[352311926,1739038235364,-500.0,0.00010879,2]
[352311928,1739038235375,-500.0,0.00010879,2]
[352311930,1739038235385,-498.70412017,0.00010879,2]
[352311971,1739038235751,-500.0,0.00010879,2]
[352311974,1739038235772,-688.79,0.00010879,2]
[352311976,1739038235784,-494.02372937,0.00010879,2]
[352311978,1739038235793,-481.18445874,0.00010879,2]
[352311980,1739038235803,-500.0,0.00010879,2]
[352311982,1739038235812,-500.0,0.00010879,2]
[352311984,1739038235822,-500.0,0.00010879,2]
[352311986,1739038235833,-500.0,0.00010879,2]
[352311988,1739038235843,-500.0,0.00010879,2]
[352311990,1739038235852,-500.0,0.00010879,2]
[352311992,1739038235861,-662.87,0.00010879,2]
[352311994,1739038235870,-500.0,0.00010879,2]
[352311996,1739038235879,-500.0,0.00010879,2]
[352311998,1739038235888,-500.0,0.00010879,2]
[352312000,1739038235898,-611.92,0.00010879,2]
[352312002,1739038235907,-500.0,0.00010879,2]
[352312004,1739038235916,-500.0,0.00010879,2]
[352312006,1739038235926,-500.0,0.00010879,2]
[352312008,1739038235935,-776.54,0.00010879,2]
[352312011,1739038235944,-500.0,0.00010879,2]
[352312013,1739038235955,-500.0,0.00010879,2]
[352312015,1739038235964,-500.0,0.00010879,2]
[352312017,1739038235973,-500.0,0.00010879,2]
[352312019,1739038235982,-500.0,0.00010879,2]
[352312021,1739038235991,-500.0,0.00010879,2]
[352312023,1739038236000,-500.0,0.00010879,2]
[352312025,1739038236010,-500.0,0.00010879,2]
[352312027,1739038236018,-500.0,0.00010879,2]
[352312029,1739038236028,-500.0,0.00010879,2]
[352312031,1739038236037,-500.0,0.00010879,2]
[352312033,1739038236046,-500.0,0.00010879,2]
[352312035,1739038236055,-603.14,0.00010879,2]
[352312036,1739038236064,-500.0,0.00010879,2]
[352312038,1739038236073,-500.0,0.00010879,2]
[352312040,1739038236082,-500.0,0.00010879,2]
[352312042,1739038236092,-500.0,0.00010879,2]
[352312044,1739038236101,-500.0,0.00010879,2]
[352312046,1739038236110,-500.0,0.00010879,2]
[352312048,1739038236118,-500.0,0.00010879,2]
[352312050,1739038236128,-500.0,0.00010879,2]
[352312052,1739038236137,-500.0,0.00010879,2]
[352312054,1739038236146,-500.6006611,0.00010879,2]
[352312056,1739038236156,-500.0,0.00010879,2]
[352312058,1739038236165,-619.75,0.00010879,2]
[352312060,1739038236175,-500.0,0.00010879,2]
[352312062,1739038236184,-500.0,0.00010879,2]
[352312064,1739038236193,-500.0,0.00010879,2]
[352312066,1739038236203,-591.95,0.00010879,2]
[352312068,1739038236212,-613.07,0.00010879,2]
[352312070,1739038236221,-500.0,0.00010879,2]
[352312072,1739038236231,-310.82774413,0.00010879,2]
[352312074,1739038236240,-443.13474416,0.00010879,2]
[352312076,1739038236249,-500.0,0.00010879,2]
[352312078,1739038236259,-500.0,0.00010879,2]
[352312081,1739038236268,-500.0,0.00010879,2]
[352312082,1739038236279,-500.0,0.00010879,2]
[352312085,1739038236290,-500.0,0.00010879,2]
[352312086,1739038236299,-616.96528684,0.00010879,2]
[352312088,1739038236308,-500.0,0.00010879,2]
[352312090,1739038236318,-500.0,0.00010879,2]
[352312092,1739038236327,-500.0,0.00010879,2]
[352312094,1739038236336,-500.0,0.00010879,2]
[352312096,1739038236345,-500.0,0.00010879,2]
[352312098,1739038236354,-500.0,0.00010879,2]
[352312100,1739038236363,-500.0,0.00010879,2]
[352312102,1739038236373,-601.48,0.00010879,2]
[352312104,1739038236382,-502.98777218,0.00010879,2]
[352312107,1739038236391,-500.0,0.00010879,2]
[352312109,1739038236400,-500.0,0.00010879,2]
[352312111,1739038236410,-638.87,0.00010879,2]
[352312112,1739038236419,-500.0,0.00010879,2]
[352312114,1739038236428,-500.0,0.00010879,2]
[352312117,1739038236437,-500.0,0.00010879,2]
[352312119,1739038236446,-500.0,0.00010879,2]
[352312121,1739038236455,-500.0,0.00010879,2]
[352312122,1739038236464,-500.0,0.00010879,2]
[352312124,1739038236473,-500.0,0.00010879,2]
[352312126,1739038236482,-500.0,0.00010879,2]
[352312129,1739038236491,-500.0,0.00010879,2]
[352312131,1739038236500,-500.0,0.00010879,2]
[352312132,1739038236510,-500.0,0.00010879,2]
[352312134,1739038236520,-526.02,0.00010879,2]
[352312137,1739038236530,-500.0,0.00010879,2]
[352312139,1739038236539,-500.0,0.00010879,2]
[352312140,1739038236548,-500.0,0.00010879,2]
[352312142,1739038236558,-500.0,0.00010879,2]
[352312145,1739038236567,-1306.63806115,0.00010879,2]
[352312148,1739038236587,-384.12105095,0.00010879,2]
[352312159,1739038236687,-1613.5908879,0.00010879,2]
[352312161,1739038236697,-836.3,0.00010879,2]
[352312163,1739038236706,-500.0,0.00010879,2]
[352312165,1739038236715,-275.01384469,0.00010879,2]
[352312167,1739038236724,-782.22,0.00010879,2]
[352312169,1739038236733,-500.0,0.00010879,2]
[352312171,1739038236742,-60.45287351,0.00010879,2]
[352312175,1739038236769,-439.54712649,0.00010879,2]
[352312177,1739038236778,-250.95257903,0.00010879,2]
[352312179,1739038236790,-249.04742097,0.00010879,2]
[352312181,1739038236799,-375.61058154,0.00010879,2]
[352312183,1739038236812,-124.38941846,0.00010879,2]
[352312185,1739038236821,-241.56930154,0.00010879,2]
[352312187,1739038236831,-839.44,0.00010879,2]
[352312189,1739038236841,-500.0,0.00010879,2]
[352312191,1739038236850,-500.0,0.00010879,2]
[352312193,1739038236859,-500.0,0.00010879,2]
[352312195,1739038236868,-500.0,0.00010879,2]
[352312197,1739038236877,-659.34,0.00010879,2]
[352312199,1739038236886,-185.26128,0.00010879,2]
[352312202,1739038236905,-500.0,0.00010806,2]
[352312204,1739038236914,-314.73872,0.00010879,2]
[352312206,1739038236923,-983.83,0.00010879,2]
[352312208,1739038236932,-540.46982911,0.00010879,2]
[352312210,1739038236942,-536.14328419,0.00010879,2]
[352312212,1739038236951,-500.0,0.00010879,2]
[352312214,1739038236960,-500.0,0.00010879,2]
[352312216,1739038236969,-233.9328278,0.00010879,2]
[352312218,1739038236980,-398.5871722,0.00010879,2]
[352312220,1739038236989,-73.912826,0.00010879,2]
[352312222,1739038237002,-585.49977958,0.00010879,2]
[352312225,1739038237013,-137.87739442,0.00010879,2]
[352312227,1739038237022,-171.41761058,0.00010879,2]
[352312229,1739038237032,-328.58238942,0.00010879,2]
[352312231,1739038237041,-55.95761058,0.00010879,2]
[352312233,1739038237054,-444.04238942,0.00010879,2]
[352312235,1739038237063,-500.0,0.00010879,2]
[352312237,1739038237071,-255.95761058,0.00010879,2]
[352312321,1739038237817,-500.0,0.00010806,2]
[352312323,1739038237828,-500.0,0.00010807,2]
[352312325,1739038237838,-244.04238942,0.00010879,2]
[352312327,1739038237847,-553.19108828,0.00010879,2]
[352312329,1739038237856,-675.09,0.00010879,2]
[352312331,1739038237866,-500.0,0.00010879,2]
[352312333,1739038237875,-27.6765233,0.00010879,2]
[352312335,1739038237886,-472.3234767,0.00010879,2]
[352312336,1739038237895,-791.65,0.00010879,2]
[352312337,1739038237904,-500.0,0.00010879,2]
[352312338,1739038237914,-500.0,0.00010879,2]
[352312339,1739038237923,-788.26,0.00010879,2]
[352312340,1739038237933,-500.0,0.00010879,2]
[352312341,1739038237942,-500.0,0.00010879,2]
[352312342,1739038237952,-500.0,0.00010879,2]
[352312343,1739038237961,-1096.01,0.00010879,2]
[352312344,1739038237970,-500.0,0.00010879,2]
[352312345,1739038237979,-38.3565233,0.00010879,2]
[352312346,1739038237993,-461.6434767,0.00010879,2]
[352312347,1739038238003,-500.0,0.00010879,2]
[352312350,1739038238012,-1817.43,0.00010879,2]
[352312351,1739038238022,-500.0,0.00010879,2]
[352312353,1739038238032,-500.0,0.00010879,2]
[352312355,1739038238041,-500.0,0.00010879,2]
[352312357,1739038238050,-500.0,0.00010879,2]
[352312360,1739038238060,-500.0,0.00010879,2]
[352312362,1739038238070,-500.0,0.00010879,2]
[352312364,1739038238079,-500.0,0.00010879,2]
[352312366,1739038238088,-568.01,0.00010879,2]
[352312368,1739038238098,-500.0,0.00010879,2]
[352312370,1739038238107,-500.0,0.00010879,2]
[352312372,1739038238116,-500.0,0.00010879,2]
[352312374,1739038238127,-500.0,0.00010879,2]
[352312376,1739038238136,-500.0,0.00010879,2]
[352312378,1739038238145,-500.0,0.00010879,2]
[352312380,1739038238154,-699.03,0.00010879,2]
[352312382,1739038238163,-500.0,0.00010879,2]
[352312383,1739038238172,-500.0,0.00010879,2]
[352312385,1739038238183,-500.0,0.00010879,2]
[352312388,1739038238192,-768.59,0.00010879,2]
[352312390,1739038238203,-500.0,0.00010879,2]
[352312392,1739038238212,-616.33455969,0.00010879,2]
[352312394,1739038238222,-1591.85,0.00010879,2]
[352312396,1739038238231,-339.94748371,0.00010879,2]
[352312398,1739038238240,-500.0,0.00010879,2]
[352312400,1739038238250,-500.0,0.00010879,2]
[352312401,1739038238259,-500.0,0.00010879,2]
[352312403,1739038238267,-500.0,0.00010879,2]
[352312405,1739038238276,-920.76,0.00010879,2]
[352312407,1739038238285,-374.7796787,0.00010879,2]
[352312409,1739038238295,-500.0,0.00010879,2]
[352312412,1739038238306,-500.0,0.00010879,2]
[352312414,1739038238315,-500.0,0.00010879,2]
[352312415,1739038238324,-500.0,0.00010879,2]
[352312417,1739038238334,-796.18,0.00010879,2]
[352312419,1739038238343,-500.0,0.00010879,2]
[352312421,1739038238352,-1395.71,0.00010879,2]
[352312423,1739038238361,-500.0,0.00010879,2]
[352312425,1739038238370,-500.0,0.00010879,2]
[352312428,1739038238379,-500.0,0.00010879,2]
[352312429,1739038238390,-136.9848012,0.00010879,2]
[352312477,1739038238827,-484.3151988,0.00010879,2]
[352312479,1739038238837,-558.86,0.00010879,2]
[352312481,1739038238847,-165.30101364,0.00010879,2]
[352312483,1739038238857,-500.0,0.00010879,2]
[352312485,1739038238867,-1169.18,0.00010879,2]
[352312487,1739038238876,-500.0,0.00010879,2]
[352312489,1739038238886,-500.0,0.00010879,2]
[352312491,1739038238896,-1183.07,0.00010879,2]
[352312493,1739038238905,-500.0,0.00010879,2]
[352312495,1739038238915,-500.0,0.00010879,2]
[352312497,1739038238924,-1302.64,0.00010879,2]
[352312499,1739038238933,-500.0,0.00010879,2]
[352312501,1739038238942,-500.0,0.00010879,2]
[352312503,1739038238951,-500.0,0.00010879,2]
[352312505,1739038238961,-500.0,0.00010879,2]
[352312507,1739038238972,-500.0,0.00010879,2]
[352312509,1739038238981,-500.0,0.00010879,2]
[352312511,1739038238990,-500.0,0.00010879,2]
[352312513,1739038239000,-500.0,0.00010879,2]
[352312516,1739038239009,-547.09,0.00010879,2]
[352312518,1739038239018,-500.0,0.00010879,2]
[352312520,1739038239027,-500.0,0.00010879,2]
[352312521,1739038239036,-500.0,0.00010879,2]
[352312524,1739038239046,-500.0,0.00010879,2]
[352312526,1739038239056,-782.57,0.00010879,2]
[352312527,1739038239066,-500.0,0.00010879,2]
[352312530,1739038239075,-500.0,0.00010879,2]
[352312532,1739038239085,-1740.09,0.00010879,2]
[352312533,1739038239095,-1231.34,0.00010879,2]
[352312536,1739038239104,-500.0,0.00010879,2]
[352312538,1739038239113,-1338.99,0.00010879,2]
[352312540,1739038239123,-500.0,0.00010879,2]
[352312542,1739038239132,-500.0,0.00010879,2]
[352312543,1739038239142,-500.0,0.00010879,2]
[352312546,1739038239151,-1488.89,0.00010879,2]
[352312548,1739038239162,-500.0,0.00010879,2]
[352312550,1739038239172,-670.79,0.00010879,2]
[352312552,1739038239182,-421.2897835,0.00010879,2]
[352312554,1739038239191,-500.0,0.00010879,2]
[352312556,1739038239202,-500.0,0.00010879,2]
[352312558,1739038239213,-500.0,0.00010879,2]
[352312560,1739038239223,-500.0,0.00010879,2]
[352312562,1739038239233,-500.0,0.00010879,2]
[352312564,1739038239243,-500.0,0.00010879,2]
[352312567,1739038239255,-1000.0,0.00010879,2]
[352312569,1739038239265,-1234.77,0.00010879,2]
[352312571,1739038239274,-659.86,0.00010879,2]
[352312573,1739038239284,-500.0,0.00010879,2]
[352312575,1739038239295,-544.83539212,0.00010879,2]
[352312577,1739038239306,-917.9,0.00010879,2]
[352312579,1739038239316,-500.0,0.00010879,2]
[352312581,1739038239326,-500.0,0.00010879,2]
[352312583,1739038239336,-500.0,0.00010879,2]
[352312585,1739038239346,-1685.09,0.00010879,2]
[352312587,1739038239356,-500.0,0.00010879,2]
[352312589,1739038239366,-697.0,0.00010879,2]
[352312591,1739038239376,-500.0,0.00010879,2]
[352312593,1739038239386,-500.0,0.00010879,2]
[352312595,1739038239396,-500.0,0.00010879,2]
[352312597,1739038239406,-500.0,0.00010879,2]
[352312599,1739038239415,-500.0,0.00010879,2]
[352312603,1739038239425,-500.0,0.00010879,2]
[352312605,1739038239435,-1492.7,0.00010879,2]
[352312607,1739038239444,-500.0,0.00010879,2]
[352312609,1739038239454,-500.0,0.00010879,2]
[352312611,1739038239463,-500.0,0.00010879,2]
[352312613,1739038239472,-500.0,0.00010879,2]
[352312615,1739038239482,-655.35,0.00010879,2]
[352312618,1739038239492,-1167.35,0.00010879,2]
[352312621,1739038239502,-1386.01,0.00010879,2]
[352312623,1739038239511,-500.0,0.00010879,2]
[352312625,1739038239520,-500.0,0.00010879,2]
[352312627,1739038239531,-500.0,0.00010879,2]
[352312629,1739038239541,-500.0,0.00010879,2]
[352312631,1739038239553,-679.22,0.00010879,2]
[352312634,1739038239563,-500.0,0.00010879,2]
[352312636,1739038239574,-978.28,0.00010879,2]
[352312638,1739038239584,-500.0,0.00010879,2]
[352312640,1739038239594,-500.0,0.00010879,2]
[352312642,1739038239604,-500.0,0.00010879,2]
[352312643,1739038239613,-500.0,0.00010879,2]
[352312646,1739038239623,-12217.54756448,0.0001088,2]
[352312648,1739038239633,-2023.0,0.0001088,2]
[352312650,1739038239642,-15234.05821276,0.0001088,2]
[352312652,1739038239655,-775.24293708,0.0001088,2]
[352312654,1739038239666,-8239.9999986,0.0001088,2]
[352312657,1739038239682,-19363.32933099,0.0001088,2]
[352312659,1739038239700,-26492.77405302,0.0001088,2]
[352312661,1739038239711,-627.34078749,0.0001088,2]
[352312663,1739038239722,-5155.42355186,0.0001088,2]
[352312666,1739038239734,-185174.71916597,0.0001088,2]
[352312668,1739038239756,-389.900012,0.0001088,2]
[352312671,1739038239767,-675.67500003,0.0001088,2]
[352312673,1739038239779,-3043.66152464,0.0001088,2]
[352312675,1739038239791,-1374.5550006,0.0001088,2]
[352312677,1739038239803,-939.84,0.0001088,2]
[352312694,1739038239954,-500.0,0.00010807,2]
[352312696,1739038239964,-12212.27219229,0.0001088,2]
[352312698,1739038239975,-263.61696,0.0001088,2]
[352312702,1739038240005,-644.11015899,0.0001088,2]
[352312934,1739038242957,-500.0,0.00010806,2]
[352312936,1739038242966,-500.0,0.00010879,2]
[352312938,1739038242975,-854.35,0.00010879,2]
[352312940,1739038242985,-500.0,0.00010879,2]
[352312942,1739038242994,-775.27335069,0.0001088,2]
[352313217,1739038245746,-565.36275949,0.00010807,2]
[352313219,1739038245760,-155.95724051,0.00010807,2]
[352313221,1739038245769,-670.29,0.00010807,2]
[352313223,1739038245779,-500.0,0.00010879,2]
[352313225,1739038245788,-686.67039149,0.0001088,2]
[352313234,1739038245855,-269.24704914,0.0001088,2]
[352313246,1739038245966,-595.13,0.00010806,2]
[352313248,1739038245975,-8122.51943382,0.0001088,2]
[352313664,1739038509151,1000.0,9.998e-05,2]
[352313665,1739038512993,6201.2277,8.973e-05,2]
[352313666,1739038595491,165.68,9.98e-05,2]
[352313667,1739038679257,500.0,0.0002,120]
[352313668,1739038679503,500.0,0.0002,120]
[352313669,1739038679746,500.0,0.0002,120]
[352313670,1739038680027,500.0,0.0002,120]
[352313671,1739038691589,878.04,8.219e-05,2]
[352313672,1739038976782,494.495,8.836e-05,2]
[352313673,1739039016967,174.36,9.946e-05,2]
[352313675,1739039108346,21180.85020792,0.0001,2]
[352313678,1739039293025,500.0,0.0002,120]
[352313679,1739039293385,500.0,0.0002,120]
[352313680,1739039293646,500.0,0.0002,120]
[352313681,1739039293895,500.0,0.0002,120]
[352313702,1739039431822,-463.83585659,9.369e-05,2]
[352313703,1739039431833,-152.30939049,9.369e-05,2]
[352313704,1739039431843,-500.0,9.369e-05,2]
[352313705,1739039431853,-300.0,9.369e-05,2]
[352313706,1739039431862,-150.0,9.369e-05,2]
[352313707,1739039431872,-33678.00741777,9.369e-05,2]
[352313708,1739039431881,-574467.56467933,9.37e-05,2]
[352313709,1739039431890,-603.49617554,9.37e-05,2]
[352313710,1739039431900,-454.85758467,9.973e-05,2]
[352313711,1739039431911,-205.01107114,9.973e-05,2]
[352313712,1739039431920,-500.0,9.973e-05,2]
[352313713,1739039431930,-307.05222332,9.973e-05,2]
[352313714,1739039431939,-151.38237535,9.973e-05,2]
[352313715,1739039431950,-646.08,9.999e-05,2]
[352313716,1739039431959,-1925.88,9.999e-05,2]
[352313717,1739039431969,-1026.82,9.999e-05,2]
[352313718,1739039431978,-915.41,9.999e-05,2]
[352313719,1739039431987,-1332.13,9.999e-05,2]
[352313720,1739039431996,-926.67,9.999e-05,2]
[352313721,1739039432006,-1311.56,9.999e-05,2]
[352313722,1739039432015,-1896.55,9.999e-05,2]
[352313723,1739039432024,-500.0,9.999e-05,2]
[352313724,1739039432034,-500.0,9.999e-05,2]
[352313725,1739039432044,-1128.28,9.999e-05,2]
[352313726,1739039432053,-1003.03,9.999e-05,2]
[352313727,1739039432063,-730.82,9.999e-05,2]
[352313728,1739039432072,-1958.24,9.999e-05,2]
[352313729,1739039432082,-1359.35,9.999e-05,2]
[352313730,1739039432091,-2000.94,9.999e-05,2]
[352313731,1739039432102,-1186.03,9.999e-05,2]
[352313732,1739039432111,-1107.04,9.999e-05,2]
[352313733,1739039432120,-500.0,9.999e-05,2]
[352313734,1739039432130,-500.0,9.999e-05,2]
[352313735,1739039432141,-984.42,9.999e-05,2]
[352313736,1739039432150,-500.0,9.999e-05,2]
[352313737,1739039432160,-500.0,9.999e-05,2]
[352313738,1739039432174,-546.52,9.999e-05,2]
[352313739,1739039432183,-2531.59,9.999e-05,2]
[352313740,1739039432193,-742.2,9.999e-05,2]
[352313741,1739039432203,-1116.15,9.999e-05,2]
[352313742,1739039432212,-1277.83,9.999e-05,2]
[352313743,1739039432222,-525.53,9.999e-05,2]
[352313745,1739039432232,-500.0,9.999e-05,2]
[352313747,1739039432243,-362816.47648018,0.0001,2]
[352313749,1739039432259,-265.790003,0.0001,2]
[352313751,1739039432271,-2072.128,0.0001,2]
[352313753,1739039432284,-461.941993,0.0001,2]
[352313755,1739039432295,-20752.96081902,0.0001,2]
[352313757,1739039432306,-4014.45255788,0.0001,2]
[352313759,1739039432317,-257126.49483997,0.0001,2]
[352313761,1739039432327,-49848.3741023,0.0001,2]
[352313764,1739039432347,-4659.65618888,0.0001,2]
[352313766,1739039432357,-144378.25020307,0.0001,2]
[352313769,1739039432368,-10474.39854391,0.0001,2]
[352313774,1739039432406,-961.89711205,0.0001,2]
[352313776,1739039432418,-1000.0,0.0001,2]
[352313778,1739039432430,-738.28295851,0.0001,2]
[352313780,1739039432448,-327.4148016,0.0001,2]
[352313782,1739039432460,-1000.0,0.0001,2]
[352313791,1739039432534,-3271.72892879,0.0001,2]
[352313794,1739039432546,-372.98264545,0.0001,2]
[352313804,1739039432639,-428.94,0.0001,2]
[352314063,1739039437888,-708.47,9.999e-05,2]
[352314064,1739039437898,-871.19,9.999e-05,2]
[352314065,1739039437908,-226044.61767869,0.0001,2]
[352314066,1739039437918,-406.30848458,0.0001,2]
[352314067,1739039437927,-646.08,0.00010136,2]
[352314068,1739039437936,-1925.88,0.00010136,2]
[352314069,1739039437946,-1026.82,0.00010136,2]
[352314071,1739039437955,-915.41,0.00010136,2]
[352314072,1739039437964,-1332.13,0.00010136,2]
[352314073,1739039437974,-926.67,0.00010136,2]
[352314074,1739039437983,-1311.56,0.00010136,2]
[352314075,1739039437993,-1896.55,0.00010136,2]
[352314076,1739039438002,-500.0,0.00010136,2]
[352314077,1739039438011,-1128.28,0.00010136,2]
[352314079,1739039438020,-1003.03,0.00010136,2]
[352314081,1739039438029,-730.82,0.00010136,2]
[352314083,1739039438038,-1958.24,0.00010136,2]
[352314085,1739039438048,-1359.35,0.00010136,2]
[352314086,1739039438057,-2000.94,0.00010136,2]
[352314087,1739039438066,-1186.03,0.00010136,2]
[352314089,1739039438076,-1107.04,0.00010136,2]
[352314091,1739039438085,-500.0,0.00010136,2]
[352314093,1739039438094,-984.42,0.00010136,2]
[352314095,1739039438105,-500.0,0.00010136,2]
[352314097,1739039438114,-546.52,0.00010136,2]
[352314099,1739039438123,-2531.59,0.00010136,2]
[352314101,1739039438132,-742.2,0.00010136,2]
[352314103,1739039438141,-1116.15,0.00010136,2]
[352314105,1739039438151,-1277.83,0.00010136,2]
[352314106,1739039438160,-525.53,0.00010136,2]
[352314108,1739039438173,-708.47,0.00010136,2]
[352314110,1739039438182,-156.09,0.00010137,2]
[352314112,1739039438191,-646.08,0.00010273,2]
[352314114,1739039438200,-1925.88,0.00010273,2]
[352314116,1739039438209,-1026.82,0.00010273,2]
[352314118,1739039438219,-915.41,0.00010273,2]
[352314120,1739039438228,-1332.13,0.00010273,2]
[352314122,1739039438238,-926.67,0.00010273,2]
[352314124,1739039438247,-1311.56,0.00010273,2]
[352314126,1739039438256,-1896.55,0.00010273,2]
[352314128,1739039438266,-500.0,0.00010273,2]
[352314130,1739039438275,-1128.28,0.00010273,2]
[352314132,1739039438284,-1003.03,0.00010273,2]
[352314135,1739039438294,-730.82,0.00010273,2]
[352314136,1739039438303,-1958.24,0.00010273,2]
[352314138,1739039438313,-1359.35,0.00010273,2]
[352314141,1739039438322,-2000.94,0.00010273,2]
[352314142,1739039438331,-1186.03,0.00010273,2]
[352314144,1739039438342,-1107.04,0.00010273,2]
[352314146,1739039438352,-500.0,0.00010273,2]
[352314148,1739039438362,-984.42,0.00010273,2]
[352314150,1739039438372,-314.375,0.00010273,2]
[352314152,1739039438381,-546.52,0.00010273,2]
[352314155,1739039438391,-2531.59,0.00010273,2]
[352314157,1739039438400,-742.2,0.00010273,2]
[352314159,1739039438410,-1116.15,0.00010273,2]
[352314161,1739039438419,-1277.83,0.00010273,2]
[352314163,1739039438428,-525.53,0.00010273,2]
[352314164,1739039438437,-708.47,0.00010273,2]
[352314166,1739039438446,-420.0,0.00010306,2]
[352314168,1739039438455,-255.0,0.00010306,2]
[352314170,1739039438464,-646.08,0.0001041,2]
[352314172,1739039438474,-1925.88,0.0001041,2]
[352314174,1739039438483,-1026.82,0.0001041,2]
[352314176,1739039438492,-915.41,0.0001041,2]
[352314178,1739039438502,-1332.13,0.0001041,2]
[352314180,1739039438511,-926.67,0.0001041,2]
[352314182,1739039438520,-943.98915362,0.0001041,2]